bitfinex/quotes_ETHUSD_20240731
["timestamp","ask_amount","ask_price","bid_price","bid_amount"]
[1722398545428,1.90268003,3299.0,3298.7,3.03144]
[1722398545945,1.90268003,3299.0,3298.6,2.4431]
[1722398546308,1.90268003,3299.0,3298.6,5.47468]
[1722398546504,1.90268003,3299.0,3298.6,2.4431]
[1722398546729,1.90268003,3299.0,3298.7,3.03148]
[1722398547248,1.90268003,3299.0,3298.6,5.47468]
[1722398547402,1.90268003,3298.9,3298.6,3.03158]
[1722398547602,1.90268003,3298.9,3298.5,1.061]
[1722398547804,1.90268003,3298.8,3298.5,4.09266]
[1722398548737,3.03113,3299.1,3298.5,4.09266]
[1722398548936,1.90308382,3298.8,3298.5,4.09266]
[1722398549327,0.16069805,3298.7,3298.5,4.09266]
[1722398549531,1.90308382,3298.8,3298.5,4.09266]
[1722398549708,0.16069805,3298.7,3298.5,4.09266]
[1722398549908,1.90308382,3298.8,3298.5,4.09266]
[1722398550122,0.16069805,3298.7,3298.5,4.09266]
[1722398550318,1.90308382,3298.7,3298.3,4.09281]
[1722398550553,0.16069805,3298.6,3298.3,4.09281]
[1722398551621,1.90308382,3298.8,3298.3,4.09281]
[1722398551828,0.16069805,3298.5,3298.4,3.03176]
[1722398552017,0.16069805,3298.5,3298.3,5.47669786]
[1722398552213,1.90305488,3298.7,3298.3,1.38388786]
[1722398552467,0.16069805,3298.4,3298.2,3.4491]
[1722398552761,0.16064282,3298.3,3298.2,3.4491]
[1722398552911,4.93384027,3298.7,3298.2,3.4491]
[1722398553114,0.16064282,3298.6,3298.2,3.4491]
[1722398553325,0.16064282,3298.6,3298.1,10.38998859]
[1722398555253,2.06253307,3298.6,3298.1,10.38998859]
[1722398555456,0.16064282,3298.6,3298.1,10.38998859]
[1722398555659,2.06246334,3298.6,3298.1,11.83826645]
[1722398556125,2.06246334,3298.6,3298.1,4.48029786]
[1722398556468,2.06246334,3298.6,3298.1,3.03198]
[1722398558164,2.06246334,3298.6,3298.2,3.03194]
[1722398558328,5.09406334,3298.6,3298.0,4.09308]
[1722398558537,5.09406334,3298.6,3297.7,7.35796859]
[1722398558538,3.03201,3298.2,3297.7,7.35796859]
[1722398558731,2.96282052,3298.5,3297.6,4.0935]
[1722398558732,3.03205,3298.1,3297.6,1.061]
[1722398558937,1.90182052,3298.0,3297.4,6.48967]
[1722398559201,2.06232213,3298.0,3297.4,9.41671686]
[1722398559404,2.06232213,3298.0,3297.4,2.396]
[1722398559718,1.90182052,3297.8,3297.3,8.41896859]
[1722398559878,1.90182052,3297.7,3297.3,7.35796859]
[1722398560060,5.09454177,3297.7,3297.3,7.35796859]
[1722398560789,2.06213177,3297.7,3297.3,7.35796859]
[1722398560987,0.16031125,3297.7,3297.4,3.03268]
[1722398561302,1.90182052,3297.9,3297.4,3.0326]
[1722398561510,0.16012092,3297.6,3297.4,3.0326]
[1722398561660,1.90182052,3297.9,3297.4,3.0326]
[1722398561860,0.16004105,3297.5,3297.4,3.09325068]
[1722398562100,6.06365,3298.4,3297.6,3.03242]
[1722398562316,1.90054613,3298.1,3297.7,1.061]
[1722398562666,1.90023821,3298.1,3297.7,1.061]
[1722398563320,1.90023821,3298.1,3297.6,3.03242]
[1722398564547,3.03205,3298.1,3297.4,4.21217557]
[1722398564755,1.89979417,3298.0,3297.4,4.21217557]
[1722398565254,3.03232,3297.8,3297.3,3.03278]
[1722398565398,4.93228978,3297.8,3297.3,3.03278]
[1722398565599,3.03232,3297.8,3297.2,7.35796859]
[1722398565829,4.93228978,3297.8,3297.2,7.35796859]
[1722398566048,3.03232,3297.8,3297.2,10.39078859]
[1722398567928,3.03232,3297.8,3297.2,3.03282]
[1722398569642,3.03247,3297.7,3297.1,3.03294]
[1722398570145,6.06473,3297.8,3297.1,3.03289]
[1722398570388,7.22901458,3298.0,3297.2,3.03287]
[1722398570494,3.03234,3297.8,3297.2,3.03287]
[1722398570698,3.03234,3297.8,3297.2,6.06567]
[1722398570941,3.03234,3297.8,3297.2,3.639367]
[1722398571116,5.33088,3298.0,3297.3,3.03277]
[1722398571315,0.15948439,3297.7,3297.3,3.03277]
[1722398571499,2.2987,3298.0,3297.4,3.03268]
[1722398571794,3.03213,3298.1,3297.4,5.46948]
[1722398572000,0.15948439,3297.9,3297.4,5.46948]
[1722398572207,3.03215,3298.0,3297.4,3.03268]
[1722398572450,0.15941989,3297.8,3297.4,3.03268]
[1722398572628,3.03199,3298.2,3297.5,3.335858]
[1722398572799,0.15941989,3297.7,3297.5,3.03259]
[1722398573139,3.03205,3298.1,3297.5,3.03259]
[1722398573313,0.15943525,3297.6,3297.5,3.03259]
[1722398573508,3.03205,3298.1,3297.5,3.03259]
[1722398573935,0.15943525,3298.0,3297.5,3.03259]
[1722398574521,0.15943525,3298.0,3297.3,3.0327]
[1722398574857,0.15943525,3298.0,3297.6,3.0325]
[1722398575031,7.37700986,3298.3,3297.8,3.03232]
[1722398575235,0.15930626,3297.9,3297.8,3.03232]
[1722398575432,6.06326,3298.6,3297.8,0.303232]
[1722398575433,4.27637898,3298.6,3297.8,0.303232]
[1722398575647,5.24503548,3298.9,3298.2,3.03186]
[1722398575648,1.89747898,3298.8,3298.2,3.03186]
[1722398575819,3.03142,3298.8,3298.2,3.03186]
[1722398576358,4.92889898,3298.8,3298.2,3.03186]
[1722398576854,3.03142,3298.8,3298.2,3.03186]
[1722398577559,3.03153,3298.7,3298.1,3.03204]
[1722398577746,1.89747898,3298.8,3298.0,2.3385]
[1722398578061,3.03133,3298.9,3298.3,3.03181]
[1722398578757,4.92977823,3298.9,3298.3,3.03181]
[1722398579322,7.96117823,3298.9,3298.3,3.03181]
[1722398579524,3.03151,3298.7,3298.1,3.32083]
[1722398579823,3.03168,3298.5,3298.0,2.3385]
[1722398580354,3.03159,3298.6,3298.0,5.3706]
[1722398580739,3.03159,3298.6,3298.0,3.0321]
[1722398581462,4.93054277,3298.8,3298.2,3.03194]
[1722398581668,3.03146,3298.8,3298.2,3.03194]
[1722398581880,3.0315,3298.7,3298.0,4.15641706]
[1722398582971,3.03158,3298.6,3298.0,4.15641706]
[1722398583266,3.03169,3298.5,3297.8,10.69344059]
[1722398583469,5.31279,3298.5,3297.8,10.39020859]
[1722398583649,5.31279,3298.5,3297.8,13.42244859]
[1722398583859,5.31279,3298.5,3297.9,3.0322]
[1722398584272,3.03156,3298.7,3298.1,3.03199]
[1722398584473,4.33281551,3298.8,3298.2,3.03195]
[1722398584717,4.93066551,3298.9,3298.3,3.03184]
[1722398584863,3.03135,3298.9,3298.3,3.03184]
[1722398585069,3.03141,3298.8,3298.2,0.606394]
[1722398585389,4.93072551,3298.8,3298.2,1.667394]
[1722398585685,3.03141,3298.8,3298.2,1.667394]
[1722398585900,4.93072551,3298.8,3298.2,4.699274]
[1722398586082,3.03141,3298.8,3298.2,4.699274]
[1722398586410,0.1597546,3298.7,3298.2,4.699274]
[1722398589377,3.1912746,3298.7,3298.2,1.061]
[1722398589582,5.09158663,3298.7,3298.2,1.061]
[1722398590308,3.03205,3298.1,3297.8,7.35796859]
[1722398590526,1.061,3298.4,3297.1,3.03291]
[1722398590527,3.0324,3297.8,3297.1,3.03291]
[1722398590720,3.0324,3297.8,3297.2,3.03286]
[1722398591010,0.15976998,3297.7,3297.2,3.03286]
[1722398593533,0.15976998,3297.7,3297.3,3.03277]
[1722398593705,0.15976998,3297.7,3297.1,4.61762986]
[1722398593905,3.03234,3297.8,3297.2,3.03281]
[1722398594130,1.90067463,3297.9,3297.2,3.03281]
[1722398594131,0.15965329,3297.6,3297.2,3.03281]
[1722398594349,5.45095,3298.0,3297.3,3.03271]
[1722398594634,7.35172517,3298.0,3297.3,3.03271]
[1722398594828,0.15965329,3297.9,3297.3,3.03271]
[1722398595338,0.15965329,3297.9,3297.3,0.06065303]
[1722398595498,0.15965329,3297.9,3297.7,3.03239]
[1722398595690,4.90077517,3298.2,3297.7,3.03239]
[1722398596035,0.15925712,3297.8,3297.6,3.03249]
[1722398596434,0.15925712,3297.7,3297.6,3.03249]
[1722398596794,1.90077517,3298.1,3297.6,3.03249]
[1722398597026,0.15927556,3297.7,3297.6,3.03249]
[1722398597358,0.15932777,3297.7,3297.6,3.03249]
[1722398597754,6.03202,3298.2,3297.6,3.03249]
[1722398598068,0.15932777,3297.7,3297.6,3.03249]
[1722398598222,7.9337046,3298.2,3297.6,3.03249]
[1722398598425,0.15932777,3298.1,3297.6,3.03249]
[1722398598655,5.09306237,3298.1,3297.4,3.0326]
[1722398599070,1.9016846,3298.0,3297.4,3.0326]
[1722398599239,3.03205,3298.1,3297.4,3.0326]
[1722398599424,1.90243288,3298.0,3297.4,3.0326]
[1722398599624,0.15932777,3297.9,3297.4,3.0326]
[1722398600024,0.15932777,3297.9,3297.4,6.0652]
[1722398600437,0.15932777,3297.9,3297.4,3.0326]
[1722398600690,5.09399065,3297.9,3297.3,3.03278]
[1722398600948,4.93477288,3297.8,3297.3,3.03278]
[1722398601153,3.03234,3297.8,3297.3,3.03278]
[1722398601361,0.15930627,3297.7,3297.3,3.03278]
[1722398601538,0.15930627,3297.7,3297.3,6.06548]
[1722398601740,0.15930627,3297.7,3297.3,6.79533169]
[1722398601956,1.90292927,3297.9,3297.3,6.79533169]
[1722398602562,0.15930627,3297.8,3297.4,3.03266]
[1722398602929,4.93512927,3298.0,3297.5,3.03258]
[1722398603125,0.15930627,3297.9,3297.5,3.03258]
[1722398603348,2.06223554,3297.9,3297.3,6.79526169]
[1722398603642,2.06241092,3297.9,3297.3,6.79526169]
[1722398604344,0.15930627,3297.9,3297.3,3.76255169]
[1722398604549,2.06255967,3297.9,3297.3,3.76255169]
[1722398604747,5.09478967,3297.9,3297.3,3.76255169]
[1722398604934,1.9032534,3297.8,3297.3,3.76255169]
[1722398605340,0.15930627,3297.7,3297.3,3.0327]
[1722398605673,0.15930627,3297.6,3297.3,3.0327]
[1722398606037,4.3040534,3297.8,3297.3,3.0327]
[1722398606236,0.15930627,3297.7,3297.3,3.0327]
[1722398606437,7.3364034,3297.8,3297.3,3.0327]
[1722398606675,7.3364034,3297.8,3297.1,4.26595686]
[1722398606979,0.15930627,3297.7,3297.1,7.29883686]
[1722398607341,0.15930627,3297.7,3297.2,1.46568055]
[1722398608041,0.15930627,3297.7,3297.2,4.49853055]
[1722398608345,2.06267086,3297.7,3297.2,4.49853055]
[1722398609252,3.0326,3297.5,3297.0,10.39096859]
[1722398609487,3.0327,3297.4,3297.0,7.35796859]
[1722398609858,0.15930627,3297.3,3297.0,7.35796859]
[1722398611415,3.19208627,3297.3,3297.0,7.35796859]
[1722398611595,0.15930627,3297.3,3297.0,7.35796859]
[1722398612085,1.9020959,3297.4,3297.0,7.35796859]
[1722398612297,3.0328,3297.3,3297.0,7.35796859]
[1722398612810,0.15915881,3297.2,3296.7,3.03333]
[1722398613212,0.15915881,3297.2,3296.8,1.062]
[1722398613710,5.3481,3297.3,3296.8,1.062]
[1722398614208,0.15908508,3297.2,3296.8,1.062]
[1722398614716,0.15908508,3297.1,3296.8,1.062]
[1722398614882,5.3481,3297.3,3296.8,1.062]
[1722398615265,0.15908508,3297.2,3296.8,1.062]
[1722398615620,5.3481,3297.3,3296.8,1.062]
[1722398615817,0.15908508,3297.1,3296.8,1.062]
[1722398616117,0.15908508,3297.0,3296.8,1.062]
[1722398616280,5.3481,3297.3,3296.8,1.707243]
[1722398616477,0.15908508,3297.2,3296.8,1.062]
[1722398616788,5.3481,3297.3,3296.8,4.09522]
[1722398617125,4.93446413,3297.5,3296.8,4.09522]
[1722398617470,0.15908508,3297.4,3296.8,4.09522]
[1722398617736,3.19179508,3297.4,3296.8,4.09522]
[1722398618238,3.03278,3297.3,3296.8,4.09522]
[1722398618645,3.03278,3297.3,3296.6,3.03335]
[1722398618777,0.15908508,3297.2,3296.8,1.062]
[1722398619125,3.03278,3297.3,3296.8,1.062]
[1722398619292,0.15908508,3297.2,3296.8,1.062]
[1722398619516,3.03278,3297.3,3296.8,1.062]
[1722398619709,0.15908508,3297.2,3296.8,1.062]
[1722398619887,3.03278,3297.3,3296.8,1.062]
[1722398620101,0.15908508,3297.2,3296.8,1.062]
[1722398620307,3.03278,3297.3,3296.8,1.062]
[1722398620509,0.15908508,3297.2,3296.8,1.062]
[1722398620672,3.03278,3297.3,3296.5,3.03347]
[1722398620673,2.3597,3297.0,3296.5,3.03347]
[1722398620876,0.15908508,3296.9,3296.5,1.062]
[1722398621299,2.3597,3297.0,3296.5,4.09545]
[1722398622037,2.3597,3297.0,3296.5,3.03345]
[1722398622320,0.15899906,3296.9,3296.5,5.43795386]
[1722398622526,2.3597,3297.0,3296.5,5.43795386]
[1722398623328,0.15899906,3296.9,3296.5,5.43795386]
[1722398623662,3.03293,3297.2,3296.5,5.43795386]
[1722398623963,3.03316,3296.9,3296.5,1.062]
[1722398625265,0.15894069,3296.8,3296.5,1.062]
[1722398625971,3.03305,3297.1,3296.5,3.0335]
[1722398626157,3.03305,3297.1,3296.5,4.0955]
[1722398626362,3.03307,3297.0,3296.5,4.0955]
[1722398626525,0.15894069,3296.9,3296.5,4.0955]
[1722398626721,0.15894069,3296.9,3296.5,4.50505]
[1722398627165,3.03296,3297.1,3296.5,4.50505]
[1722398627318,0.15894069,3296.8,3296.5,4.50505]
[1722398627667,3.03296,3297.1,3296.5,4.50505]
[1722398628224,0.15894069,3297.0,3296.5,4.50505]
[1722398628428,0.15894069,3297.0,3296.5,1.47155]
[1722398629422,3.19205069,3297.0,3296.4,3.03353]
[1722398629625,3.19205069,3297.0,3296.4,4.09553]
[1722398629872,3.19205069,3297.0,3296.4,7.12906]
[1722398630230,0.15894069,3297.0,3296.5,3.03349]
[1722398630629,3.03303,3297.1,3296.5,3.03349]
[1722398631175,0.15894069,3297.0,3296.7,3.0333]
[1722398631323,0.15894069,3297.0,3296.6,4.09542]
[1722398631526,3.03288,3297.2,3296.6,4.09542]
[1722398631726,0.15892839,3297.1,3296.6,4.09536]
[1722398631925,3.03288,3297.2,3296.7,3.03332]
[1722398632232,3.03298,3297.1,3296.6,1.062]
[1722398632454,3.19190839,3297.1,3296.6,1.062]
[1722398632655,7.32028373,3297.3,3296.6,4.09541]
[1722398632840,3.03289,3297.2,3296.6,4.09541]
[1722398633143,0.15892839,3297.2,3296.8,3.03318]
[1722398633353,2.3855,3297.3,3296.8,3.03318]
[1722398633520,0.15887617,3297.2,3296.8,3.03318]
[1722398633723,2.3855,3297.3,3296.8,3.03318]
[1722398634028,0.15887617,3297.2,3296.8,3.03318]
[1722398634453,2.3855,3297.3,3296.8,3.03318]
[1722398635159,0.15887617,3297.2,3296.8,3.03318]
[1722398635354,4.28940586,3297.3,3296.8,3.03318]
[1722398635701,4.28940586,3297.3,3296.6,4.09534]
[1722398635702,0.15887617,3297.2,3296.6,4.09534]
[1722398636005,0.15887617,3297.2,3296.7,3.03324]
[1722398636300,4.28940586,3297.3,3296.8,3.03323]
[1722398636457,0.15887617,3297.2,3296.8,3.03323]
[1722398636657,4.28940586,3297.3,3296.8,3.03323]
[1722398636973,0.15887617,3297.2,3296.8,3.03323]
[1722398637173,2.06278203,3297.2,3296.6,4.504874]
[1722398637396,1.90390586,3297.1,3296.6,4.504874]
[1722398637575,2.06278203,3297.1,3296.6,4.504874]
[1722398637776,2.06278203,3297.1,3296.7,3.03333]
[1722398637975,0.15887617,3297.1,3296.7,3.03333]
[1722398638308,1.90495389,3297.1,3296.7,3.03333]
[1722398638469,1.90495389,3297.2,3296.7,3.03333]
[1722398638680,1.90495389,3297.2,3296.7,6.06658]
[1722398638855,0.15887617,3297.1,3296.7,6.06658]
[1722398639056,0.15887617,3297.1,3296.8,3.03322]
[1722398639798,0.15887617,3297.1,3296.6,4.504904]
[1722398639990,2.06383006,3297.1,3296.6,4.504904]
[1722398640394,0.15887617,3297.1,3296.6,4.504904]
[1722398640563,3.19184617,3297.1,3296.5,3.03347]
[1722398640909,3.03307,3297.0,3296.4,1.062]
[1722398641112,3.03315,3296.9,3296.4,1.062]
[1722398641276,1.90482645,3296.8,3296.2,5.49402]
[1722398641472,1.90469143,3296.7,3296.3,1.062]
[1722398641676,1.90469143,3296.6,3296.3,1.062]
[1722398641977,1.90440907,3296.7,3296.3,4.09569]
[1722398642175,1.90440907,3296.7,3296.4,3.03358]
[1722398642420,1.90440907,3296.8,3296.4,3.03358]
[1722398642615,1.90440907,3296.9,3296.5,4.09549]
[1722398642789,1.90440907,3297.0,3296.5,4.09549]
[1722398642989,1.90440907,3297.0,3296.6,3.03341]
[1722398643314,2.06327908,3296.9,3296.6,3.03335]
[1722398643520,0.15887001,3296.9,3296.6,3.03335]
[1722398643877,3.03287,3297.2,3296.6,3.03335]
[1722398643878,1.90497636,3297.0,3296.6,3.03335]
[1722398644075,0.15887001,3296.9,3296.8,3.03323]
[1722398644290,0.15887001,3296.9,3296.8,7.010278]
[1722398644480,1.90497636,3297.3,3297.0,3.03302]
[1722398644681,1.90497636,3297.3,3297.2,1.062]
[1722398644984,1.90497636,3297.4,3297.0,1.062]
[1722398645200,1.90497636,3297.3,3297.0,1.062]
[1722398645598,1.90497636,3297.3,3297.0,4.09505]
[1722398646126,1.90497636,3297.3,3297.0,1.062]
[1722398646277,2.06374189,3297.2,3297.0,1.062]
[1722398646479,0.15876553,3297.2,3297.0,1.062]
[1722398646690,1.90497636,3297.2,3297.0,1.062]
[1722398646887,0.15876553,3297.1,3297.0,1.062]
[1722398647133,1.90604254,3297.3,3297.0,1.062]
[1722398647430,2.06480807,3297.2,3297.0,1.062]
[1722398648329,2.06480807,3297.2,3296.9,3.03315]
[1722398649579,2.06480807,3297.2,3296.8,1.062]
[1722398649790,1.90604254,3297.1,3296.8,1.062]
[1722398650306,2.3856,3297.3,3296.8,1.062]
[1722398650488,1.90683813,3297.0,3296.8,1.062]
[1722398651037,0.15876553,3296.9,3296.8,4.09523]
[1722398651413,1.90673255,3297.0,3296.8,4.09523]
[1722398651599,0.15876553,3296.9,3296.8,1.062]
[1722398651938,0.15876553,3296.9,3296.6,4.09536]
[1722398652141,1.90690539,3296.9,3296.7,3.03333]
[1722398652306,0.15882391,3296.8,3296.7,3.03333]
[1722398652512,0.15882391,3296.8,3296.6,4.09541]
[1722398652710,2.0659639,3296.8,3296.6,4.09541]
[1722398652915,2.0659639,3296.8,3296.6,1.062]
[1722398653645,2.0659639,3296.8,3296.4,11.45351859]
[1722398653803,1.90725561,3296.7,3296.4,11.45351859]
[1722398654228,0.15887308,3296.6,3296.4,4.09555]
[1722398654744,0.15887308,3296.6,3296.5,1.062]
[1722398655047,0.15887308,3296.6,3296.5,4.09552]
[1722398655905,0.15885771,3296.6,3296.5,4.09552]
[1722398656518,1.90725561,3296.9,3296.6,3.0334]
[1722398656836,0.15882085,3296.8,3296.7,1.062]
[1722398657353,1.90749283,3296.8,3296.7,1.062]
[1722398657550,2.06631368,3296.8,3296.7,1.062]
[1722398659552,0.15882085,3296.8,3296.7,1.062]
[1722398660819,1.90758754,3296.8,3296.7,1.062]
[1722398661042,2.06640401,3296.8,3296.7,4.09533]
[1722398661204,0.15883314,3296.8,3296.7,4.09533]
[1722398661652,1.90757087,3297.0,3296.7,4.09533]
[1722398661828,0.15884851,3296.8,3296.7,4.09533]
[1722398662310,1.90757087,3297.0,3296.7,4.09533]
[1722398662530,2.06641938,3296.9,3296.7,4.09533]
[1722398662914,2.06641938,3296.9,3296.8,8.38134339]
[1722398662915,0.15884851,3296.9,3296.8,8.38134339]
[1722398663119,1.90757087,3297.3,3297.1,3.03296]
[1722398663319,1.90757087,3297.3,3297.2,4.09487]
[1722398663503,1.90757087,3297.4,3297.2,4.09487]
[1722398663707,2.4312,3297.9,3297.3,1.062]
[1722398663906,1.90767461,3297.5,3297.3,4.09473]
[1722398664469,1.90767461,3297.5,3297.3,1.062]
[1722398665238,1.90767461,3297.4,3297.3,1.062]
[1722398666521,1.90767461,3297.4,3297.1,1.062]
[1722398666976,3.03251,3297.6,3297.1,1.062]
[1722398667272,1.90685186,3297.4,3297.1,1.062]
[1722398667721,1.90685186,3297.3,3296.9,4.09514]
[1722398668507,1.90685186,3297.2,3296.9,4.09512]
[1722398668821,1.90685186,3297.3,3296.9,4.09512]
[1722398669274,1.90685186,3297.3,3297.0,3.03304]
[1722398669580,1.90685186,3297.4,3297.0,3.03304]
[1722398670126,1.90685186,3297.3,3297.0,3.03304]
[1722398670461,1.90667877,3297.3,3297.0,3.03304]
[1722398670821,1.90663627,3297.4,3297.0,3.03304]
[1722398671772,1.90663627,3297.4,3297.2,3.03281]
[1722398672063,1.90663627,3297.4,3297.3,1.062]
[1722398672269,1.90663627,3297.4,3297.3,4.09478]
[1722398672482,1.90663627,3297.6,3297.4,3.03268]
[1722398672683,1.90662596,3297.7,3297.4,3.03268]
[1722398673645,5.32926,3297.9,3297.3,1.062]
[1722398673986,1.90629048,3297.7,3297.3,1.062]
[1722398674140,1.90629048,3297.7,3297.3,4.09476]
[1722398676275,1.90629048,3297.6,3297.3,4.09476]
[1722398676483,2.06532027,3297.6,3297.3,1.062]
[1722398676988,1.90543758,3297.5,3297.2,3.03286]
[1722398677280,2.06455338,3297.5,3297.2,3.03286]
[1722398677840,1.90543758,3297.4,3297.2,3.03286]
[1722398678245,1.90543758,3297.4,3297.0,5.47452]
[1722398678561,0.1591158,3297.3,3297.1,1.062]
[1722398679348,1.90543758,3297.5,3297.1,1.062]
[1722398679685,0.1591158,3297.4,3297.1,1.062]
[1722398680393,1.90537465,3297.4,3297.1,1.062]
[1722398680591,0.1591158,3297.3,3297.1,1.062]
[1722398680742,1.90537875,3297.4,3297.1,1.062]
[1722398681080,0.1591158,3297.3,3297.1,1.062]
[1722398681440,0.1591158,3297.3,3296.8,10.39117859]
[1722398681678,1.90537875,3297.2,3296.8,7.35796859]
[1722398681876,1.90537875,3297.1,3296.6,2.2645]
[1722398682079,1.90537875,3297.0,3296.6,3.03341]
[1722398682380,1.90537875,3297.0,3296.7,1.062]
[1722398682381,2.06441161,3297.0,3296.7,1.062]
[1722398682686,0.15903286,3297.0,3296.7,1.062]
[1722398683076,1.90537875,3297.1,3296.7,1.062]
[1722398683245,0.15903286,3296.9,3296.7,1.062]
[1722398683446,1.90518871,3297.0,3296.7,1.062]
[1722398683649,0.15903286,3296.8,3296.7,1.062]
[1722398683848,1.90518871,3297.0,3296.7,1.062]
[1722398684048,0.15903286,3296.8,3296.7,1.062]
[1722398684681,1.90518871,3297.0,3296.7,1.062]
[1722398684926,0.15903286,3296.8,3296.7,1.062]
[1722398685087,1.90518871,3297.0,3296.7,1.062]
[1722398685260,0.15903286,3296.9,3296.7,1.062]
[1722398688448,2.06436365,3296.9,3296.7,1.062]
[1722398688963,0.15903286,3296.9,3296.7,1.062]
[1722398689162,2.06436365,3296.9,3296.7,1.062]
[1722398690098,4.99830601,3296.9,3296.2,7.35796859]
[1722398690246,4.93899052,3296.6,3296.2,7.35796859]
[1722398690445,1.90551052,3296.6,3296.2,7.35796859]
[1722398690650,4.80632846,3296.9,3296.2,7.35796859]
[1722398690651,0.15889152,3296.5,3296.2,7.35796859]
[1722398690852,0.15889152,3296.5,3296.1,4.09586]
[1722398691089,4.9385277,3296.7,3296.1,4.09586]
[1722398691264,0.15889152,3296.4,3296.1,3.03388]
[1722398691443,1.9051977,3296.6,3296.3,1.062]
[1722398691789,1.9051977,3296.7,3296.3,4.0957]
[1722398691994,1.9051977,3296.7,3296.5,1.062]
[1722398692700,1.90536619,3296.7,3296.5,1.062]
[1722398692845,1.90536619,3296.7,3296.3,1.062]
[1722398693290,3.03315,3296.9,3296.3,1.062]
[1722398693587,3.03315,3296.9,3296.3,4.0957]
[1722398693588,1.90519431,3296.6,3296.3,4.0957]
[1722398693976,1.90519431,3296.8,3296.3,4.0957]
[1722398694368,1.90519431,3296.7,3296.3,4.0957]
[1722398694552,1.90519431,3296.8,3296.3,4.0957]
[1722398695891,1.90519431,3296.7,3296.3,4.0957]
[1722398696042,1.90519431,3296.8,3296.3,4.0957]
[1722398696698,1.90461401,3296.8,3296.3,4.0957]
[1722398697209,1.90461401,3296.8,3296.3,3.0337]
[1722398697348,1.90461401,3296.8,3296.5,3.0335]
[1722398697553,1.90461401,3296.9,3296.4,1.062]
[1722398698201,1.90461401,3296.8,3296.4,1.062]
[1722398698499,1.90461401,3296.9,3296.4,4.0956]
[1722398698648,4.93776401,3296.9,3296.4,4.0956]
[1722398699318,1.90461401,3296.8,3296.4,4.0956]
[1722398699524,4.93776401,3296.9,3296.4,4.0956]
[1722398700037,4.93707612,3296.9,3296.4,4.0956]
[1722398700427,3.03315,3296.9,3296.4,4.0956]
[1722398700617,4.93705342,3296.9,3296.4,4.0956]
[1722398700812,1.90390342,3296.9,3296.4,4.0956]
[1722398701743,1.90390342,3296.9,3296.5,3.0335]
[1722398702097,0.23744,3297.1,3296.5,3.0335]
[1722398702302,1.90382061,3296.9,3296.5,3.0335]
[1722398702522,0.23744,3297.1,3296.5,3.0335]
[1722398702728,1.90375669,3296.9,3296.5,3.0335]
[1722398703289,1.90375669,3296.9,3296.4,2.2517]
[1722398703495,2.39743936,3296.9,3296.4,3.3137]
[1722398704114,1.90375669,3296.8,3296.4,3.3137]
[1722398704442,1.90375669,3296.8,3296.4,6.34729]
[1722398704610,1.90375669,3297.0,3296.7,2.495]
[1722398704814,1.90375669,3297.5,3296.9,4.09515]
[1722398705040,1.90375669,3297.4,3297.1,1.062]
[1722398705545,3.03251,3297.6,3297.1,1.062]
[1722398705749,1.90357826,3297.4,3297.1,1.062]
[1722398706416,0.15547361,3297.3,3297.1,1.062]
[1722398706724,0.15547361,3297.3,3296.9,4.09508]
[1722398707470,2.05903956,3297.3,3296.9,4.09508]
[1722398707631,0.15547361,3297.3,3296.9,4.09508]
[1722398708032,2.05903956,3297.3,3296.9,4.09508]
[1722398708374,0.15547361,3297.3,3296.9,4.09508]
[1722398708661,2.05903956,3297.3,3296.9,1.062]
[1722398708972,2.05903956,3297.3,3296.7,5.52829]
[1722398708973,5.09171978,3297.3,3296.8,1.062]
[1722398709328,4.93624617,3297.3,3296.8,1.062]
[1722398709852,4.93624617,3297.3,3296.5,7.35796859]
[1722398709853,3.03308,3297.0,3296.5,7.35796859]
[1722398710278,4.93651617,3297.0,3296.5,7.35796859]
[1722398710565,3.18862361,3296.9,3296.5,7.35796859]
[1722398710770,3.18862361,3296.9,3296.4,3.4618]
[1722398710771,5.09205978,3296.9,3296.4,3.4618]
[1722398711357,2.05890978,3296.9,3296.4,6.49537]
[1722398711537,0.15547361,3296.9,3296.4,6.49537]
[1722398712231,2.05904064,3296.9,3296.4,6.49537]
[1722398712580,5.09221064,3296.9,3296.4,3.4618]
[1722398712790,5.09233382,3296.9,3296.4,3.4618]
[1722398713080,5.09233382,3296.9,3296.4,1.062]
[1722398713230,3.18864361,3296.9,3296.4,1.062]
[1722398713436,5.09233382,3296.9,3296.4,1.062]
[1722398713788,3.18864361,3296.9,3296.4,4.09559]
[1722398714289,0.15547361,3296.9,3296.8,1.062]
[1722398714567,1.90369021,3297.3,3297.0,3.033]
[1722398714768,1.90407819,3297.4,3297.1,4.09496]
[1722398715071,1.90407819,3297.5,3297.1,4.09496]
[1722398715280,1.90414939,3297.5,3297.2,3.03282]
[1722398716238,1.90414939,3297.5,3297.1,1.062]
[1722398717143,1.90414939,3297.4,3297.1,1.062]
[1722398717348,4.93683939,3297.4,3297.1,1.062]
[1722398717587,1.90414939,3297.4,3297.1,1.062]
[1722398717790,1.90414939,3297.3,3297.1,1.062]
[1722398718203,1.90414939,3297.5,3297.1,1.062]
[1722398718491,3.03225,3297.9,3297.1,1.062]
[1722398718807,1.9042461,3297.6,3297.3,1.062]
[1722398719343,4.9367561,3297.6,3297.1,1.062]
[1722398719549,1.9042461,3297.5,3297.1,1.062]
[1722398720292,1.9042461,3297.5,3297.1,4.09496]
[1722398721423,0.15549204,3297.4,3297.1,4.09496]
[1722398722447,1.90514669,3297.5,3297.1,4.09496]
[1722398722661,0.15549204,3297.3,3297.1,4.09496]
[1722398722859,1.90514669,3297.5,3297.1,4.5467234]
[1722398723100,0.15549204,3297.2,3297.1,4.5467234]
[1722398723275,1.90514669,3297.5,3297.1,4.5467234]
[1722398723606,1.90514669,3297.5,3297.2,3.03279]
[1722398723801,0.15549204,3297.4,3297.2,3.03279]
[1722398724004,1.90514669,3297.6,3297.2,3.03279]
[1722398724205,0.15549204,3297.3,3297.2,3.03279]
[1722398724359,1.90514669,3297.5,3297.2,3.03279]
[1722398725056,0.15549204,3297.4,3297.2,3.03279]